[Event "Titled Tuesday Blitz September 27 Late 2022"]
[White "Wieczorek, Oskar"]
[Black "Dounis, Alexandros"]
[WhiteFideId "1133950"]
[BlackFideId "4213238"]
[WhiteElo "2302"]
[BlackElo "2204"]
[Result "1/2-1/2"]
[Round "02"]
[TimeControl "180+1"]
[Date "2022.09.28"]
[WhiteClock "0:00:09"]
[BlackClock "0:00:17"]

1. e4 {[%clk 0:03:00]}  e5 {[%clk 0:02:53]} 2. Nf3 {[%clk 0:03:00]}  Nc6 {[%clk 0:02:51]} 3. Nc3 {[%clk 0:03:00]}  Nf6 {[%clk 0:02:51]} 4. h3 {[%clk 0:03:01]}  d5 {[%clk 0:02:50]} 5. exd5 {[%clk 0:03:00]}  Nxd5 {[%clk 0:02:51]} 6. Bb5 {[%clk 0:03:00]}  Nxc3 {[%clk 0:02:50]} 7. bxc3 {[%clk 0:03:01]}  Bd6 {[%clk 0:02:50]} 8. O-O {[%clk 0:03:00]}  O-O {[%clk 0:02:51]} 9. d4 {[%clk 0:03:01]}  exd4 {[%clk 0:02:50]} 10. cxd4 {[%clk 0:03:02]}  Ne7 {[%clk 0:02:49]} 11. c4 {[%clk 0:02:59]}  Ng6 {[%clk 0:02:48]} 12. Re1 {[%clk 0:02:50]}  c6 {[%clk 0:02:47]} 13. Ba4 {[%clk 0:02:50]}  Qc7 {[%clk 0:02:47]} 14. Bc2 {[%clk 0:02:33]}  Bd7 {[%clk 0:02:43]} 15. c5 {[%clk 0:02:22]}  Bf4 {[%clk 0:02:43]} 16. Bxg6 {[%clk 0:02:16]}  fxg6 {[%clk 0:02:42]} 17. Re7 {[%clk 0:02:09]}  Rae8 {[%clk 0:02:38]} 18. Qb3+ {[%clk 0:01:47]}  Kh8 {[%clk 0:02:36]} 19. Bxf4 {[%clk 0:01:47]}  Rxf4 {[%clk 0:02:34]} 20. Rae1 {[%clk 0:01:32]}  Qd8 {[%clk 0:02:13]} 21. Rxe8+ {[%clk 0:01:13]}  Bxe8 {[%clk 0:02:12]} 22. Qxb7 {[%clk 0:01:14]}  Rf7 {[%clk 0:01:57]} 23. Qb3 {[%clk 0:01:13]}  Rf8 {[%clk 0:01:44]} 24. Qe6 {[%clk 0:00:54]}  Bf7 {[%clk 0:01:40]} 25. Qe7 {[%clk 0:00:50]}  Bxa2 {[%clk 0:01:35]} 26. Qxd8 {[%clk 0:00:34]}  Rxd8 {[%clk 0:01:36]} 27. Ra1 {[%clk 0:00:33]}  Bd5 {[%clk 0:01:36]} 28. Rxa7 {[%clk 0:00:32]}  Bxf3 {[%clk 0:01:35]} 29. gxf3 {[%clk 0:00:33]}  Kg8 {[%clk 0:01:35]} 30. Rc7 {[%clk 0:00:28]}  Rxd4 {[%clk 0:01:31]} 31. Rxc6 {[%clk 0:00:29]}  Kf7 {[%clk 0:01:31]} 32. Kf1 {[%clk 0:00:27]}  Rh4 {[%clk 0:01:28]} 33. Rd6 {[%clk 0:00:18]}  Ke7 {[%clk 0:01:07]} 34. Kg2 {[%clk 0:00:16]}  Rh5 {[%clk 0:01:07]} 35. Rc6 {[%clk 0:00:14]}  Kd7 {[%clk 0:01:07]} 36. Rd6+ {[%clk 0:00:11]}  Ke7 {[%clk 0:01:07]} 37. Rc6 {[%clk 0:00:10]}  Kd7 {[%clk 0:01:07]} 38. Ra6 {[%clk 0:00:11]}  Rxc5 {[%clk 0:01:06]} 39. f4 {[%clk 0:00:11]}  Ke7 {[%clk 0:01:04]} 40. f3 {[%clk 0:00:11]}  Rc1 {[%clk 0:01:03]} 41. Kg3 {[%clk 0:00:12]}  Rg1+ {[%clk 0:01:02]} 42. Kf2 {[%clk 0:00:12]}  Rc1 {[%clk 0:01:01]} 43. h4 {[%clk 0:00:12]}  Rc7 {[%clk 0:00:59]} 44. Ra5 {[%clk 0:00:12]}  Kf7 {[%clk 0:01:00]} 45. Kg3 {[%clk 0:00:12]}  Rc6 {[%clk 0:01:00]} 46. Kg4 {[%clk 0:00:12]}  Kf6 {[%clk 0:01:00]} 47. Ra8 {[%clk 0:00:10]}  Rc1 {[%clk 0:00:57]} 48. Ra6+ {[%clk 0:00:10]}  Kf7 {[%clk 0:00:56]} 49. f5 {[%clk 0:00:10]}  Rg1+ {[%clk 0:00:56]} 50. Kf4 {[%clk 0:00:10]}  gxf5 {[%clk 0:00:53]} 51. Kxf5 {[%clk 0:00:11]}  Rg3 {[%clk 0:00:47]} 52. Kf4 {[%clk 0:00:10]}  Rh3 {[%clk 0:00:45]} 53. Kg4 {[%clk 0:00:10]}  Rh1 {[%clk 0:00:45]} 54. h5 {[%clk 0:00:11]}  Rh2 {[%clk 0:00:43]} 55. Kg5 {[%clk 0:00:09]}  h6+ {[%clk 0:00:40]} 56. Kg4 {[%clk 0:00:09]}  Rh1 {[%clk 0:00:37]} 57. Ra5 {[%clk 0:00:08]}  Rg1+ {[%clk 0:00:35]} 58. Kf4 {[%clk 0:00:08]}  Rh1 {[%clk 0:00:35]} 59. Ra7+ {[%clk 0:00:08]}  Kf6 {[%clk 0:00:34]} 60. Ra6+ {[%clk 0:00:08]}  Kf7 {[%clk 0:00:34]} 61. Ra5 {[%clk 0:00:09]}  Rg1 {[%clk 0:00:31]} 62. Ra7+ {[%clk 0:00:08]}  Kg8 {[%clk 0:00:30]} 63. Ra8+ {[%clk 0:00:09]}  Kf7 {[%clk 0:00:30]} 64. Ra5 {[%clk 0:00:09]}  Rb1 {[%clk 0:00:26]} 65. Kg4 {[%clk 0:00:08]}  Rb4+ {[%clk 0:00:25]} 66. f4 {[%clk 0:00:08]}  Rb7 {[%clk 0:00:25]} 67. Ra6 {[%clk 0:00:08]}  Rc7 {[%clk 0:00:24]} 68. Rb6 {[%clk 0:00:08]}  Rd7 {[%clk 0:00:24]} 69. Ra6 {[%clk 0:00:09]}  Rd1 {[%clk 0:00:24]} 70. Ra7+ {[%clk 0:00:09]}  Kg8 {[%clk 0:00:24]} 71. Ra8+ {[%clk 0:00:09]}  Kh7 {[%clk 0:00:20]} 72. Kh4 {[%clk 0:00:07]}  Rg1 {[%clk 0:00:20]} 73. Rb8 {[%clk 0:00:06]}  Rg2 {[%clk 0:00:19]} 74. Ra8 {[%clk 0:00:06]}  Rf2 {[%clk 0:00:20]} 75. Kg4 {[%clk 0:00:06]}  Rb2 {[%clk 0:00:20]} 76. Rc8 {[%clk 0:00:06]}  Rb5 {[%clk 0:00:20]} 77. Ra8 {[%clk 0:00:06]}  Rb7 {[%clk 0:00:20]} 78. Rc8 {[%clk 0:00:06]}  Ra7 {[%clk 0:00:20]} 79. Rb8 {[%clk 0:00:06]}  Rc7 {[%clk 0:00:20]} 80. Rd8 {[%clk 0:00:06]}  Rc6 {[%clk 0:00:20]} 81. Rb8 {[%clk 0:00:07]}  Rc5 {[%clk 0:00:20]} 82. Ra8 {[%clk 0:00:07]}  Rc4 {[%clk 0:00:21]} 83. Rb8 {[%clk 0:00:08]}  Rc1 {[%clk 0:00:18]} 84. Ra8 {[%clk 0:00:08]}  Rh1 {[%clk 0:00:18]} 85. Rb8 {[%clk 0:00:08]}  Rg1+ {[%clk 0:00:18]} 86. Kh4 {[%clk 0:00:08]}  Rf1 {[%clk 0:00:18]} 87. Kg4 {[%clk 0:00:08]}  Rf2 {[%clk 0:00:18]} 88. Kg3 {[%clk 0:00:08]}  Rc2 {[%clk 0:00:18]} 89. Kg4 {[%clk 0:00:09]}  Rc7 {[%clk 0:00:18]} 90. Ra8 {[%clk 0:00:09]}  Rc2 {[%clk 0:00:18]} 91. Rb8 {[%clk 0:00:09]}  Rc7 {[%clk 0:00:17]} 1/2-1/2


[Site "https://www.chess.com"]

[Event "Titled Tuesday Blitz September 27 Late 2022"]
[White "Yi, Richard"]
[Black "Muradli, Mahammad"]
[WhiteFideId "2079518"]
[BlackFideId "13409301"]
[WhiteElo "2147"]
[BlackElo "2611"]
[Result "0-1"]
[Round "02"]
[TimeControl "180+1"]
[Date "2022.09.27"]
[WhiteClock "0:00:04"]
[BlackClock "0:00:04"]

1. c4 {[%clk 0:02:16]}  g6 {[%clk 0:02:56]} 2. d4 {[%clk 0:02:12]}  Bg7 {[%clk 0:02:13]} 3. e4 {[%clk 0:02:12]}  c5 {[%clk 0:02:13]} 4. d5 {[%clk 0:02:12]}  b5 {[%clk 0:02:14]} 5. cxb5 {[%clk 0:02:12]}  d6 {[%clk 0:02:14]} 6. Nc3 {[%clk 0:02:11]}  a6 {[%clk 0:02:14]} 7. a4 {[%clk 0:02:10]}  Nf6 {[%clk 0:02:11]} 8. f3 {[%clk 0:02:05]}  O-O {[%clk 0:02:10]} 9. Bg5 {[%clk 0:02:05]}  Qa5 {[%clk 0:02:09]} 10. Ra3 {[%clk 0:02:01]}  Re8 {[%clk 0:02:02]} 11. Ne2 {[%clk 0:01:55]}  Nbd7 {[%clk 0:01:58]} 12. Nc1 {[%clk 0:01:53]}  Qc7 {[%clk 0:01:42]} 13. Qd2 {[%clk 0:01:53]}  Ne5 {[%clk 0:01:19]} 14. h3 {[%clk 0:01:48]}  Bb7 {[%clk 0:01:16]} 15. Be2 {[%clk 0:01:43]}  axb5 {[%clk 0:01:10]} 16. Nxb5 {[%clk 0:01:42]}  Qb6 {[%clk 0:01:09]} 17. O-O {[%clk 0:01:38]}  Rec8 {[%clk 0:01:04]} 18. Na2 {[%clk 0:01:30]}  Ba6 {[%clk 0:00:56]} 19. Nac3 {[%clk 0:01:30]}  Qa5 {[%clk 0:00:56]} 20. Qc2 {[%clk 0:01:27]}  c4 {[%clk 0:00:50]} 21. Rb1 {[%clk 0:01:16]}  Rab8 {[%clk 0:00:49]} 22. Be3 {[%clk 0:01:02]}  Nfd7 {[%clk 0:00:28]} 23. f4 {[%clk 0:00:56]}  Nd3 {[%clk 0:00:27]} 24. Bxd3 {[%clk 0:00:57]}  cxd3 {[%clk 0:00:27]} 25. Qxd3 {[%clk 0:00:58]}  Bxc3 {[%clk 0:00:16]} 26. bxc3 {[%clk 0:00:41]}  Nc5 {[%clk 0:00:17]} 27. Bxc5 {[%clk 0:00:30]}  Rxc5 {[%clk 0:00:18]} 28. c4 {[%clk 0:00:30]}  Rbc8 {[%clk 0:00:16]} 29. Qc3 {[%clk 0:00:26]}  Qb6 {[%clk 0:00:12]} 30. Kh2 {[%clk 0:00:14]}  Rxc4 {[%clk 0:00:11]} 31. Qf3 {[%clk 0:00:15]}  Qa5 {[%clk 0:00:09]} 32. Na7 {[%clk 0:00:10]}  Rc3 {[%clk 0:00:07]} 33. Rxc3 {[%clk 0:00:04]}  Rxc3 {[%clk 0:00:08]} 34. Qg4 {[%clk 0:00:03]}  Qxa4 {[%clk 0:00:09]} 35. Nc6 {[%clk 0:00:03]}  Qxe4 {[%clk 0:00:08]} 36. Rb8+ {[%clk 0:00:03]}  Kg7 {[%clk 0:00:08]} 37. Rb6 {[%clk 0:00:03]}  Bc4 {[%clk 0:00:07]} 38. Rb7 {[%clk 0:00:03]}  Bxd5 {[%clk 0:00:06]} 39. Rxe7 {[%clk 0:00:02]}  Qxg2+ {[%clk 0:00:03]} 40. Qxg2 {[%clk 0:00:02]}  Bxg2 {[%clk 0:00:04]} 41. Nd4 {[%clk 0:00:02]}  Bxh3 {[%clk 0:00:03]} 42. Ne6+ {[%clk 0:00:02]}  Bxe6 {[%clk 0:00:03]} 43. Rc7 {[%clk 0:00:02]}  Rxc7 {[%clk 0:00:03]} 44. Kg3 {[%clk 0:00:02]}  Bf5 {[%clk 0:00:04]} 45. Kh4 {[%clk 0:00:03]}  Rc3 {[%clk 0:00:04]} 46. Kg5 {[%clk 0:00:04]}  f6+ {[%clk 0:00:04]} 0-1


[Site "https://www.chess.com"]

[Event "Titled Tuesday Blitz September 27 Late 2022"]
[White "Zhang, Derek"]
[Black "Girel, Joseph"]
[WhiteFideId "2087871"]
[BlackFideId "36033561"]
[WhiteElo "2085"]
[BlackElo "2104"]
[Result "0-1"]
[Round "02"]
[TimeControl "180+1"]
[Date "2022.09.28"]
[WhiteClock "0:00:01"]
[BlackClock "0:00:08"]

1. Nf3 {[%clk 0:03:00]}  g6 {[%clk 0:02:56]} 2. c4 {[%clk 0:03:01]}  Bg7 {[%clk 0:02:56]} 3. Nc3 {[%clk 0:03:02]}  d6 {[%clk 0:02:55]} 4. d4 {[%clk 0:03:02]}  Nd7 {[%clk 0:02:54]} 5. e4 {[%clk 0:03:01]}  e5 {[%clk 0:02:54]} 6. d5 {[%clk 0:03:02]}  Ne7 {[%clk 0:02:54]} 7. g4 {[%clk 0:03:02]}  O-O {[%clk 0:02:52]} 8. Rg1 {[%clk 0:03:00]}  Kh8 {[%clk 0:02:52]} 9. Be2 {[%clk 0:02:58]}  a5 {[%clk 0:02:53]} 10. Be3 {[%clk 0:02:58]}  b6 {[%clk 0:02:52]} 11. Qd2 {[%clk 0:02:57]}  Nc5 {[%clk 0:02:52]} 12. Bh6 {[%clk 0:02:56]}  f6 {[%clk 0:02:47]} 13. Bxg7+ {[%clk 0:02:56]}  Kxg7 {[%clk 0:02:47]} 14. h4 {[%clk 0:02:57]}  Bd7 {[%clk 0:02:45]} 15. O-O-O {[%clk 0:02:43]}  a4 {[%clk 0:02:44]} 16. Kb1 {[%clk 0:02:41]}  c6 {[%clk 0:02:39]} 17. Qe3 {[%clk 0:02:15]}  cxd5 {[%clk 0:02:34]} 18. Nxd5 {[%clk 0:02:13]}  Nxd5 {[%clk 0:02:34]} 19. cxd5 {[%clk 0:02:08]}  b5 {[%clk 0:02:29]} 20. Ne1 {[%clk 0:02:06]}  b4 {[%clk 0:02:27]} 21. Nd3 {[%clk 0:02:05]}  Nxd3 {[%clk 0:02:21]} 22. Bxd3 {[%clk 0:02:01]}  b3 {[%clk 0:02:21]} 23. a3 {[%clk 0:02:01]}  Qa5 {[%clk 0:02:20]} 24. Rc1 {[%clk 0:01:58]}  Rfc8 {[%clk 0:02:20]} 25. f3 {[%clk 0:01:58]}  Bb5 {[%clk 0:02:17]} 26. g5 {[%clk 0:01:50]}  fxg5 {[%clk 0:02:07]} 27. hxg5 {[%clk 0:01:43]}  Qa6 {[%clk 0:02:01]} 28. Bxb5 {[%clk 0:01:43]}  Qxb5 {[%clk 0:02:02]} 29. f4 {[%clk 0:01:43]}  exf4 {[%clk 0:01:30]} 30. Qxf4 {[%clk 0:01:32]}  Rxc1+ {[%clk 0:01:27]} 31. Rxc1 {[%clk 0:01:31]}  Rf8 {[%clk 0:01:25]} 32. Qxd6 {[%clk 0:01:29]}  Qd3+ {[%clk 0:01:22]} 33. Ka1 {[%clk 0:01:28]}  Qc2 {[%clk 0:01:08]} 34. Qc7+ {[%clk 0:01:03]}  Qxc7 {[%clk 0:00:56]} 35. Rxc7+ {[%clk 0:01:04]}  Kg8 {[%clk 0:00:54]} 36. Rc1 {[%clk 0:01:03]}  Re8 {[%clk 0:00:45]} 37. Re1 {[%clk 0:01:03]}  Re5 {[%clk 0:00:39]} 38. Kb1 {[%clk 0:01:02]}  Kf7 {[%clk 0:00:39]} 39. Kc1 {[%clk 0:01:02]}  Rxg5 {[%clk 0:00:38]} 40. e5 {[%clk 0:00:59]}  Ke7 {[%clk 0:00:25]} 41. d6+ {[%clk 0:00:28]}  Kd8 {[%clk 0:00:25]} 42. Kd2 {[%clk 0:00:14]}  h5 {[%clk 0:00:17]} 43. Kd3 {[%clk 0:00:12]}  h4 {[%clk 0:00:13]} 44. Kd4 {[%clk 0:00:12]}  Rg2 {[%clk 0:00:11]} 45. e6 {[%clk 0:00:10]}  Rd2+ {[%clk 0:00:11]} 46. Kc5 {[%clk 0:00:10]}  h3 {[%clk 0:00:10]} 47. Kc6 {[%clk 0:00:04]}  Rc2+ {[%clk 0:00:09]} 48. Kd5 {[%clk 0:00:02]}  Rd2+ {[%clk 0:00:10]} 49. Ke5 {[%clk 0:00:02]}  h2 {[%clk 0:00:10]} 50. Rh1 {[%clk 0:00:01]}  Rxb2 {[%clk 0:00:08]} 0-1


[Site "https://www.chess.com"]

[Event "Titled Tuesday Blitz September 27 Late 2022"]
[White "Zhigalko, Sergei"]
[Black "Putnam, Liam"]
[WhiteFideId "13502956"]
[BlackFideId "30938279"]
[WhiteElo "2662"]
[BlackElo "2031"]
[Result "1-0"]
[Round "02"]
[TimeControl "180+1"]
[Date "2022.09.27"]
[WhiteClock "0:02:15"]
[BlackClock "0:00:03"]

1. e4 {[%clk 0:03:00]}  c5 {[%clk 0:02:51]} 2. Nf3 {[%clk 0:02:57]}  d6 {[%clk 0:02:48]} 3. d4 {[%clk 0:02:56]}  cxd4 {[%clk 0:02:49]} 4. Qxd4 {[%clk 0:02:57]}  Nf6 {[%clk 0:02:50]} 5. Nc3 {[%clk 0:02:56]}  a6 {[%clk 0:02:50]} 6. Bc4 {[%clk 0:02:54]}  Nc6 {[%clk 0:02:49]} 7. Qd3 {[%clk 0:02:54]}  Bg4 {[%clk 0:02:40]} 8. Bb3 {[%clk 0:02:52]}  g6 {[%clk 0:02:27]} 9. Bg5 {[%clk 0:02:50]}  Bg7 {[%clk 0:02:26]} 10. O-O-O {[%clk 0:02:49]}  O-O {[%clk 0:02:21]} 11. h3 {[%clk 0:02:49]}  Bxf3 {[%clk 0:02:07]} 12. Qxf3 {[%clk 0:02:49]}  b5 {[%clk 0:02:04]} 13. h4 {[%clk 0:02:44]}  h5 {[%clk 0:02:03]} 14. Kb1 {[%clk 0:02:31]}  Ne5 {[%clk 0:01:27]} 15. Qe2 {[%clk 0:02:27]}  Rc8 {[%clk 0:01:08]} 16. f4 {[%clk 0:02:26]}  Nc4 {[%clk 0:01:02]} 17. e5 {[%clk 0:02:27]}  Ng4 {[%clk 0:00:46]} 18. exd6 {[%clk 0:02:27]}  Qa5 {[%clk 0:00:28]} 19. Bxc4 {[%clk 0:02:19]}  Rxc4 {[%clk 0:00:27]} 20. dxe7 {[%clk 0:02:17]}  Re8 {[%clk 0:00:23]} 21. Rd8 {[%clk 0:02:16]}  Rc8 {[%clk 0:00:03]} 22. Rxc8 {[%clk 0:02:16]}  Rxc8 {[%clk 0:00:04]} 23. e8=Q+ {[%clk 0:02:17]}  Rxe8 {[%clk 0:00:04]} 24. Qxe8+ {[%clk 0:02:17]}  Kh7 {[%clk 0:00:05]} 25. Qxf7 {[%clk 0:02:16]}  b4 {[%clk 0:00:03]} 26. Ne4 {[%clk 0:02:15]} 1-0


[Site "https://www.chess.com"]

[Event "Titled Tuesday Blitz September 27 Late 2022"]
[White "Amburgy, Ryan"]
[Black "Przybylski, Wojciech"]
[WhiteFideId "30924820"]
[BlackFideId "1117599"]
[WhiteElo "2066"]
[BlackElo "2133"]
[Result "1/2-1/2"]
[Round "03"]
[TimeControl "180+1"]
[Date "2022.09.28"]
[WhiteClock "0:00:12"]
[BlackClock "0:00:07"]

1. d4 {[%clk 0:03:00]}  Nf6 {[%clk 0:02:57]} 2. c4 {[%clk 0:03:00]}  c6 {[%clk 0:02:57]} 3. Nc3 {[%clk 0:02:54]}  d5 {[%clk 0:02:56]} 4. cxd5 {[%clk 0:02:55]}  cxd5 {[%clk 0:02:56]} 5. Bf4 {[%clk 0:02:55]}  a6 {[%clk 0:02:56]} 6. e3 {[%clk 0:02:55]}  e6 {[%clk 0:02:57]} 7. Bd3 {[%clk 0:02:53]}  Be7 {[%clk 0:02:57]} 8. h3 {[%clk 0:02:52]}  Bd7 {[%clk 0:02:55]} 9. Nf3 {[%clk 0:02:51]}  O-O {[%clk 0:02:55]} 10. O-O {[%clk 0:02:51]}  Nc6 {[%clk 0:02:54]} 11. Rc1 {[%clk 0:02:47]}  b5 {[%clk 0:02:54]} 12. Qe2 {[%clk 0:02:47]}  Na5 {[%clk 0:02:47]} 13. Ne5 {[%clk 0:02:45]}  Rc8 {[%clk 0:02:43]} 14. g4 {[%clk 0:02:32]}  Nc4 {[%clk 0:02:38]} 15. g5 {[%clk 0:02:27]}  Ne8 {[%clk 0:02:36]} 16. h4 {[%clk 0:02:26]}  f5 {[%clk 0:02:29]} 17. Kg2 {[%clk 0:02:19]}  b4 {[%clk 0:01:52]} 18. Nb1 {[%clk 0:02:17]}  Bb5 {[%clk 0:01:52]} 19. Nd2 {[%clk 0:01:58]}  Ned6 {[%clk 0:01:48]} 20. b3 {[%clk 0:01:52]}  Nxd2 {[%clk 0:01:45]} 21. Qxd2 {[%clk 0:01:51]}  Ne4 {[%clk 0:01:43]} 22. Qe2 {[%clk 0:01:50]}  Nc3 {[%clk 0:01:39]} 23. Qd2 {[%clk 0:01:45]}  Ne4 {[%clk 0:01:25]} 24. Qb2 {[%clk 0:01:40]}  Rxc1 {[%clk 0:01:06]} 25. Rxc1 {[%clk 0:01:36]}  Nc3 {[%clk 0:01:06]} 26. a4 {[%clk 0:01:18]}  Bxd3 {[%clk 0:00:58]} 27. Nxd3 {[%clk 0:01:19]}  a5 {[%clk 0:00:55]} 28. f3 {[%clk 0:01:12]}  Bd6 {[%clk 0:00:52]} 29. Rh1 {[%clk 0:00:55]}  Bxf4 {[%clk 0:00:39]} 30. Nxf4 {[%clk 0:00:56]}  Qd6 {[%clk 0:00:38]} 31. Nd3 {[%clk 0:00:46]}  Qe7 {[%clk 0:00:33]} 32. Qf2 {[%clk 0:00:42]}  Rc8 {[%clk 0:00:27]} 33. Rc1 {[%clk 0:00:39]}  Qd6 {[%clk 0:00:25]} 34. Ne5 {[%clk 0:00:38]}  Rc7 {[%clk 0:00:22]} 35. Qf1 {[%clk 0:00:29]}  Qb6 {[%clk 0:00:20]} 36. Qd3 {[%clk 0:00:28]}  Kf8 {[%clk 0:00:17]} 37. h5 {[%clk 0:00:28]}  Kg8 {[%clk 0:00:17]} 38. g6 {[%clk 0:00:27]}  h6 {[%clk 0:00:17]} 39. Rc2 {[%clk 0:00:19]}  Kf8 {[%clk 0:00:16]} 40. f4 {[%clk 0:00:15]}  Qd6 {[%clk 0:00:16]} 41. Nf3 {[%clk 0:00:14]}  Ke8 {[%clk 0:00:15]} 42. Nd2 {[%clk 0:00:09]}  Kd8 {[%clk 0:00:15]} 43. Nf3 {[%clk 0:00:10]}  Qb6 {[%clk 0:00:13]} 44. Nd2 {[%clk 0:00:09]}  Kc8 {[%clk 0:00:13]} 45. Nf3 {[%clk 0:00:09]}  Kb7 {[%clk 0:00:13]} 46. Ne5 {[%clk 0:00:10]}  Rc8 {[%clk 0:00:12]} 47. Nf7 {[%clk 0:00:09]}  Rc7 {[%clk 0:00:11]} 48. Ne5 {[%clk 0:00:08]}  Qd6 {[%clk 0:00:11]} 49. Nf7 {[%clk 0:00:06]}  Qe7 {[%clk 0:00:10]} 50. Ne5 {[%clk 0:00:07]}  Qh4 {[%clk 0:00:09]} 51. Rxc3 {[%clk 0:00:06]}  bxc3 {[%clk 0:00:04]} 52. Qb5+ {[%clk 0:00:06]}  Kc8 {[%clk 0:00:04]} 53. Qa6+ {[%clk 0:00:06]}  Kb8 {[%clk 0:00:04]} 54. Qb6+ {[%clk 0:00:05]}  Kc8 {[%clk 0:00:04]} 55. Qa6+ {[%clk 0:00:05]}  Kd8 {[%clk 0:00:03]} 56. Qd6+ {[%clk 0:00:05]}  Kc8 {[%clk 0:00:03]} 57. Qxe6+ {[%clk 0:00:06]}  Kb7 {[%clk 0:00:03]} 58. Qxd5+ {[%clk 0:00:07]}  Kb8 {[%clk 0:00:02]} 59. Qg8+ {[%clk 0:00:07]}  Kb7 {[%clk 0:00:03]} 60. Qd5+ {[%clk 0:00:07]}  Kb8 {[%clk 0:00:03]} 61. Qb5+ {[%clk 0:00:07]}  Kc8 {[%clk 0:00:03]} 62. Qa6+ {[%clk 0:00:07]}  Kb8 {[%clk 0:00:03]} 63. Qb6+ {[%clk 0:00:06]}  Kc8 {[%clk 0:00:04]} 64. Qa6+ {[%clk 0:00:06]}  Kb8 {[%clk 0:00:04]} 65. Nc6+ {[%clk 0:00:06]}  Rxc6 {[%clk 0:00:04]} 66. Qxc6 {[%clk 0:00:07]}  Qg4+ {[%clk 0:00:04]} 67. Kf2 {[%clk 0:00:08]}  Qh4+ {[%clk 0:00:04]} 68. Ke2 {[%clk 0:00:08]}  Qh2+ {[%clk 0:00:04]} 69. Kd3 {[%clk 0:00:08]}  Qd2+ {[%clk 0:00:04]} 70. Kc4 {[%clk 0:00:09]}  c2 {[%clk 0:00:05]} 71. Qb6+ {[%clk 0:00:09]}  Kc8 {[%clk 0:00:05]} 72. Qc6+ {[%clk 0:00:10]}  Kb8 {[%clk 0:00:06]} 73. Qb6+ {[%clk 0:00:10]}  Kc8 {[%clk 0:00:06]} 74. Qc6+ {[%clk 0:00:11]}  Kd8 {[%clk 0:00:06]} 75. Qd6+ {[%clk 0:00:11]}  Kc8 {[%clk 0:00:07]} 76. Qc6+ {[%clk 0:00:12]} 1/2-1/2


[Site "https://www.chess.com"]

[Event "Titled Tuesday Blitz September 27 Late 2022"]
[White "Andreikin, Dmitry"]
[Black "Matinian, Nikita"]
[WhiteFideId "4158814"]
[BlackFideId "24129100"]
[WhiteElo "2736"]
[BlackElo "2422"]
[Result "1/2-1/2"]
[Round "03"]
[TimeControl "180+1"]
[Date "2022.09.28"]
[WhiteClock "0:00:07"]
[BlackClock "0:00:11"]

1. d4 {[%clk 0:03:00]}  Nf6 {[%clk 0:02:41]} 2. Bf4 {[%clk 0:02:42]}  g6 {[%clk 0:02:39]} 3. Nc3 {[%clk 0:02:42]}  d5 {[%clk 0:02:39]} 4. Nb5 {[%clk 0:02:41]}  Na6 {[%clk 0:02:39]} 5. e3 {[%clk 0:02:41]}  c6 {[%clk 0:02:39]} 6. Nc3 {[%clk 0:02:40]}  Bg7 {[%clk 0:02:39]} 7. h3 {[%clk 0:02:40]}  Nc7 {[%clk 0:02:36]} 8. Nf3 {[%clk 0:02:40]}  O-O {[%clk 0:02:33]} 9. Bd3 {[%clk 0:02:39]}  Bf5 {[%clk 0:02:33]} 10. Bxf5 {[%clk 0:02:38]}  gxf5 {[%clk 0:02:34]} 11. g4 {[%clk 0:02:37]}  Ne6 {[%clk 0:02:27]} 12. Be5 {[%clk 0:02:36]}  f4 {[%clk 0:01:45]} 13. exf4 {[%clk 0:02:32]}  Ne4 {[%clk 0:01:41]} 14. f5 {[%clk 0:02:27]}  Nxc3 {[%clk 0:01:40]} 15. bxc3 {[%clk 0:02:26]}  Bxe5 {[%clk 0:01:30]} 16. Nxe5 {[%clk 0:02:23]}  f6 {[%clk 0:01:30]} 17. Nd3 {[%clk 0:02:18]}  Ng5 {[%clk 0:01:27]} 18. h4 {[%clk 0:01:45]}  Ne4 {[%clk 0:01:26]} 19. Nf4 {[%clk 0:01:43]}  Qa5 {[%clk 0:01:23]} 20. Rh3 {[%clk 0:01:41]}  b5 {[%clk 0:00:42]} 21. Ne6 {[%clk 0:01:37]}  Nxc3 {[%clk 0:00:39]} 22. Qd2 {[%clk 0:01:34]}  b4 {[%clk 0:00:40]} 23. Qh6 {[%clk 0:01:19]}  Rf7 {[%clk 0:00:39]} 24. g5 {[%clk 0:01:19]}  b3 {[%clk 0:00:32]} 25. g6 {[%clk 0:01:12]}  b2 {[%clk 0:00:10]} 26. gxf7+ {[%clk 0:00:32]}  Kxf7 {[%clk 0:00:10]} 27. Qh5+ {[%clk 0:00:32]}  Kg8 {[%clk 0:00:11]} 28. Qg4+ {[%clk 0:00:30]}  Kf7 {[%clk 0:00:11]} 29. Qh5+ {[%clk 0:00:24]}  Kg8 {[%clk 0:00:12]} 30. Qg4+ {[%clk 0:00:06]}  Kf7 {[%clk 0:00:11]} 31. Qh5+ {[%clk 0:00:07]} 1/2-1/2


[Site "https://www.chess.com"]